[Event "2nd Cambridge Open 2024"]
[Site "Cambridge"]
[Date "2024.02.19"]
[Round "1.1"]
[White "Martyn, Rafe"]
[Black "Adams, Michael"]
[Result "1/2-1/2"]
[ECO "C54"]
[WhiteElo "2206"]
[BlackElo "2674"]
[Annotator "TA"]
[PlyCount "92"]
[EventDate "2024.02.18"]
[EventType "swiss"]
[EventCountry "ENG"]
[SourceTitle "playchess.com"]
[Source "ChessBase"]
[SourceQuality "1"]
[TimeControl "5400+30"]

{[%evp 10,92,18,11,15,9,34,19,14,21,36,13,4,0,0,0,0,-27,-25,-42,-18,-60,-54,-81,-87,-119,-109,-139,-146,-131,-139,-314,-318,-298,-295,-374,-147,-162,-83,-151,-66,-60,-69,-66,-91,-53,-19,-14,-13,-12,0,-27,0,-5,-8,-224,-215,-213,-214,-206,0,0,0,0,0,0,0,0,0,0,0,0,0,0,0,0,0,0,0,0,0,0,0,0,0]} 1. e4 {[%emt 0:00:03]} e5 {[%emt 0:00:06]} 2. Nf3 {[%emt 0:00:04]} Nc6 {[%emt 0:00:05]} 3. Bc4 {[%emt 0:00:06]} Nf6 {[%emt 0:00:33]} 4. d3 {[%emt 0:00:04]} Bc5 {[%emt 0:00:30]} 5. O-O {[%emt 0:00:08]} d6 {[%emt 0:00:23]} 6. c3 {[%emt 0:00:50]} a5 {[%emt 0:00:53]} 7. Re1 {[%emt 0:00:59]} Ba7 {[%emt 0:00:36]} 8. a4 {[%emt 0:06:57]} O-O {[%emt 0:02:11]} 9. h3 {[%emt 0:00:27]} Ne7 {[%emt 0:00:35]} 10. d4 {[%emt 0:07:03]} Ng6 {[%emt 0:04:20]} 11. dxe5 {[%emt 0:11:18]} dxe5 {[%emt 0:05:41]} 12. Qxd8 {[%emt 0:00:20]} Rxd8 {[%emt 0:00:03]} 13. Bg5 {[%emt 0:00:50]} h6 {[%emt 0:06:26]} 14. Bxf6 {[%emt 0:03:07]} gxf6 {[%emt 0:00:03]} 15. Nbd2 {[%emt 0:00:10]} Nf4 {[%emt 0:02:59] Strongly threatening ...Kh7.} 16. Nf1 {[%emt 0:08:55]} Be6 {[%emt 0:10:27]} 17. Bxe6 {[%emt 0:08:22]} fxe6 {[%emt 0:00:07]} 18. Ng3 {[%emt 0:09:38]} Rd3 {[%emt 0:09:19][%cal Of4h3]} 19. Kf1 {[%emt 0:08:20]} Nxh3 {[%emt 0:17:05]} 20. Red1 $2 {[%emt 0:07:43]} (20. Re2 $17 Nf4 21. Ree1) 20... Nxf2 $19 {[%emt 0:04:23]} 21. Rxd3 {[%emt 0:00:09]} Nxd3 {[%emt 0:00:04]} 22. Rd1 {[%emt 0:00:12]} Nf4 {[%emt 0:03:04]} (22... Nxb2 $19 {and Black stays clearly on top.} 23. Rd7 Rf8 (23... Nxa4 $2 {is the wrong capture.} 24. Nh5 $18) 24. Rxc7 Rf7 (24... Nxa4 $2 25. Rxb7 Rf7 26. Rb5 $19) 25. Rc8+ Rf8) 23. Rd7 {[%emt 0:00:10][%cal Og3e2]} Bb6 {[%emt 0:05:03]} (23... Be3 $19 {Threatens to win with ...Ra6.} 24. Ne2 Ra6 25. Nxf4 Bxf4 26. Rxc7 Rb6) 24. Nd2 {[%emt 0:00:50]} (24. Ne2 $142) 24... Kh8 {[%emt 0:02:56]} (24... c6 $1 $17 {And now ...Rd8 would win.} 25. Nc4 Bc5) 25. Ne2 $1 $15 {[%emt 0:03:17]} Nxe2 {[%emt 0:00:23]} 26. Kxe2 {[%emt 0:00:01][%mdl 4096] Endgame. KRB-KRN} Rg8 {[%emt 0:00:05]} 27. Kf3 {[%emt 0:00:16]} f5 {[%emt 0:00:07]} 28. g3 $1 {[%emt 0:02:10]} Rg7 {[%emt 0:05:01]} 29. Rd8+ {[%emt 0:00:08]} Rg8 {[%emt 0:00:08]} 30. Rd7 {[%emt 0:00:06]} Rg7 {[%emt 0:00:03]} 31. Rd8+ {[%emt 0:00:07]} Kh7 {[%emt 0:00:03]} 32. exf5 $2 {[%emt 0:02:10]} (32. Re8 $11) 32... exf5 $19 {[%emt 0:00:16] aiming for ...e4+.} 33. Nc4 {[%emt 0:00:06] [#]} e4+ {[%emt 0:02:03][%cal Be5e4,Be4e3,Be3e2][%mdl 32]} 34. Kf4 {[%emt 0:00:15] [#]} Re7 $2 {[%emt 0:01:41]} (34... Bf2 $1 $19 {White must now prevent ...Rg5.} 35. Rd2 Bxg3+ 36. Kxf5 b6) 35. Nxb6 $1 $11 {[%emt 0:05:27] The position is equal.} cxb6 {[%emt 0:00:09]} 36. Kxf5 {[%emt 0:00:04] KR-KR} e3 {[%emt 0:01:17]} 37. Rd1 {[%emt 0:00:05]} e2 {[%emt 0:02:52]} 38. Re1 {[%emt 0:00:04]} Kg7 {[%emt 0:00:13]} 39. Kf4 {[%emt 0:00:26]} Kf6 {[%emt 0:00:34]} 40. Kf3 {[%emt 0:02:36]} Kf5 {[%emt 0:02:13]} 41. Rxe2 {[%emt 0:02:13]} Rxe2 {[%emt 0:00:05]} 42. Kxe2 {[%emt 0:00:02] KP-KP} Ke4 {[%emt 0:00:06]} 43. b3 $1 {[%emt 0:00:08]} h5 {[%emt 0:01:06]} 44. c4 $1 {[%emt 0:00:28]} Kd4 {[%emt 0:00:18]} 45. Kd2 {[%emt 0:00:05]} Ke4 {[%emt 0:00:05] ( -> ...Kf3)} 46. Ke2 {[%emt 0:00:03]} Kd4 {[%emt 0:00:05] Weighted Error Value: White=0.23 (precise) /Black=0.21 (precise) .  Loses game:     	White=2     	---        Missed win:     	---       	Black=2      Mistake:       	White=1     	Black=2      Inaccurate:     	White=4     	Black=1      OK:         	White=13    	Black=15     Best:        	White=3     	Black=3      Strong:       	White=5     	---} 1/2-1/2

[Event "2nd Cambridge Open 2024"]
[Site "Cambridge"]
[Date "2024.02.19"]
[Round "1.2"]
[White "Sonis, Francesco"]
[Black "Karamsetty, Jeevan"]
[Result "1/2-1/2"]
[ECO "E62"]
[WhiteElo "2573"]
[BlackElo "2211"]
[Annotator "ChessBase"]
[PlyCount "56"]
[EventDate "2024.02.18"]
[EventType "swiss"]
[EventCountry "ENG"]
[SourceTitle "playchess.com"]
[Source "ChessBase"]
[SourceQuality "1"]
[TimeControl "5400+30"]

1. d4 {[%emt 0:00:06]} d6 {[%emt 0:00:18]} 2. Nf3 {[%emt 0:00:35]} g6 {[%emt 0:00:14]} 3. g3 {[%emt 0:00:31]} Bg7 {[%emt 0:00:15]} 4. Bg2 {[%emt 0:00:07]} Nf6 {[%emt 0:00:12]} 5. c4 {[%emt 0:00:06]} O-O {[%emt 0:00:09]} 6. Nc3 {[%emt 0:00:05]} c6 {[%emt 0:00:17]} 7. O-O {[%emt 0:00:13]} Bf5 {[%emt 0:00:26]} 8. Ng5 {[%emt 0:01:57]} e5 {[%emt 0:00:24]} 9. d5 {[%emt 0:03:43]} a5 {[%emt 0:00:16]} 10. dxc6 {[%emt 0:12:15]} bxc6 {[%emt 0:06:51]} 11. b3 {[%emt 0:03:18]} e4 {[%emt 0:06:10]} 12. Ba3 {[%emt 0:08:44]} Re8 {[%emt 0:13:07]} 13. Qxd6 {[%emt 0:19:11]} Nfd7 {[%emt 0:05:50]} 14. Nxf7 {[%emt 0:06:10]} Kxf7 {[%emt 0:00:51]} 15. Qd2 {[%emt 0:00:19]} Nc5 {[%emt 0:08:31]} 16. Qc1 {[%emt 0:03:30]} Nba6 {[%emt 0:03:02]} 17. Rd1 {[%emt 0:07:00]} Qe7 {[%emt 0:07:25]} 18. Bb2 {[%emt 0:08:04]} Kg8 {[%emt 0:04:15]} 19. Re1 {[%emt 0:03:17]} Rad8 {[%emt 0:02:20]} 20. Nd1 {[%emt 0:00:05]} Bxb2 {[%emt 0:05:58]} 21. Qxb2 {[%emt 0:00:02]} Qg7 {[%emt 0:02:13]} 22. Qc1 {[%emt 0:00:25]} Rd6 {[%emt 0:04:27]} 23. Ne3 {[%emt 0:00:25]} Red8 {[%emt 0:00:38]} 24. Qa3 {[%emt 0:00:27]} Qc7 {[%emt 0:00:33]} 25. Qb2 {[%emt 0:00:11]} Qg7 {[%emt 0:08:18]} 26. Qa3 {[%emt 0:00:02]} Qc7 {[%emt 0:02:15]} 27. Qb2 {[%emt 0:00:06]} Qg7 {[%emt 0:02:24]} 28. Qa3 {[%emt 0:00:04]} Qc7 {[%emt 0:16:51]} 1/2-1/2

[Event "2nd Cambridge Open 2024"]
[Site "Cambridge"]
[Date "2024.02.19"]
[Round "1.3"]
[White "Sowray, Peter J"]
[Black "Tiviakov, Sergei"]
[Result "0-1"]
[ECO "E27"]
[WhiteElo "2169"]
[BlackElo "2537"]
[Annotator "TA"]
[PlyCount "102"]
[EventDate "2024.02.18"]
[EventType "swiss"]
[EventCountry "ENG"]
[SourceTitle "playchess.com"]
[Source "ChessBase"]
[SourceQuality "1"]
[TimeControl "5400+30"]

{[%evp 10,102,0,-7,10,1,14,8,9,0,0,0,-1,-43,-24,-53,-40,-60,-41,-56,-46,-65,-39,-23,0,0,0,-30,0,0,0,0,0,0,0,-31,0,0,0,-26,0,-45,-45,-34,-25,-10,0,-40,-31,-32,-8,-25,-29,-39,-43,-35,-31,-51,-49,-102,-100,-204,-178,-199,-195,-204,-98,-120,-37,-590,-270,-289,-241,-242,-234,-225,-223,-296,-263,-287,-270,-312,-337,-319,-311,-311,-271,-452,-447,-650,-645,-763,-763,-679,-668]} 1. d4 {[%emt 0:00:05]} Nf6 {[%emt 0:00:05]} 2. c4 {[%emt 0:00:07]} e6 {[%emt 0:00:06]} 3. Nc3 {[%emt 0:00:07]} Bb4 {[%emt 0:00:06]} 4. f3 {[%emt 0:00:06]} O-O {[%emt 0:01:20]} 5. a3 {[%emt 0:00:21]} Bxc3+ {[%emt 0:00:06]} 6. bxc3 {[%emt 0:00:08]} Nh5 {[%emt 0:01:59] Threatens to win with ...Qh4+.} 7. Nh3 {[%emt 0:01:42]} f5 {[%emt 0:00:05]} 8. e4 {[%emt 0:01:51]} fxe4 {[%emt 0:00:11] The position is equal.} 9. Bg5 {[%emt 0:00:11]} Nf6 {[%emt 0:01:29]} 10. fxe4 {[%emt 0:02:51] [#] e5 is the strong threat.} d6 {[%emt 0:00:12]} 11. Bd3 {[%emt 0:07:43] aiming for e5.} e5 {[%emt 0:00:12]} 12. O-O {[%emt 0:02:35]} Bxh3 {[%emt 0:11:36]} 13. gxh3 {[%emt 0:00:12]} Nc6 {[%emt 0:00:01]} 14. d5 {[%emt 0:12:05]} Ne7 {[%emt 0:05:41]} 15. Ra2 {[%emt 0:01:05]} Kh8 {[%emt 0:07:25]} 16. Raf2 {[%emt 0:02:24]} Ng6 {[%emt 0:00:31]} 17. h4 {[%emt 0:10:46]} Qe7 {[%emt 0:03:58]} 18. Qd2 {[%emt 0:10:48][%cal Oc4c5]} Nf4 {[%emt 0:10:38]} 19. Bxf4 {[%emt 0:04:20]} exf4 {[%emt 0:00:07]} 20. Qxf4 {[%emt 0:01:22]} Rae8 {[%emt 0:00:13]} 21. Qg5 {[%emt 0:02:43]} Qe5 {[%emt 0:04:20]} 22. Qd2 {[%emt 0:06:02]} Qh5 {[%emt 0:07:36][%mdl 1024] Black has compensation.} (22... Nxe4 23. Rxf8+ Rxf8 24. Rxf8#) 23. Rf4 {[%emt 0:01:43]} b6 {[%emt 0:01:03]} 24. Qf2 {[%emt 0:03:11]} Re7 {[%emt 0:01:41]} 25. Rf5 {[%emt 0:04:53]} Qe8 {[%emt 0:00:05]} 26. Bc2 {[%emt 0:03:27]} Re5 {[%emt 0:02:34]} ({Stronger than} 26... Nxe4 27. Rxf8+) 27. Rf4 {[%emt 0:01:07]} Kg8 {[%emt 0:03:37]} ({Worse is} 27... Nxe4 28. Rxf8+) 28. Kh1 {[%emt 0:01:15]} Qe7 {[%emt 0:00:34]} 29. Qg2 {[%emt 0:01:08]} Nd7 {[%emt 0:07:13][%cal Bf6d7,Bd7f8,Bf8g6,Bg6e5][%mdl 32]} 30. Rxf8+ {[%emt 0:00:13]} Nxf8 {[%emt 0:00:02]} 31. Qg4 {[%emt 0:00:12]} Qe8 {[%emt 0:00:07]} 32. Rf2 {[%emt 0:04:08]} Re7 {[%emt 0:04:45]} 33. Kg2 {[%emt 0:01:24]} Ng6 {[%emt 0:01:28]} 34. Kg3 {[%emt 0:03:18]} (34. h5 $15 Ne5 35. Qh3) 34... Ne5 $17 {[%emt 0:00:12][%csl LRc4,LRg4]} 35. Qe2 {[%emt 0:00:43]} (35. Qf5 $17 {keeps fighting.}) 35... Qg6+ $19 {[%emt 0:02:32]} 36. Kh3 {[%emt 0:00:05]} Rf7 {[%emt 0:00:21]} 37. Rf5 {[%emt 0:02:10]} Qg1 {[%emt 0:02:18]} (37... Qh6 $19 38. Rxf7 Kxf7) 38. Rxf7 $17 {[%emt 0:01:56]} Kxf7 {[%emt 0:00:08][%mdl 4096] Endgame. KQB-KQN} (38... Nxf7 $17 39. e5 Nxe5 (39... dxe5 40. Bf5 $17) 40. Bxh7+ Kxh7 41. Qh5+ Kg8 42. Qe8+ Kh7 43. Qh5+ Kg8 44. Qe8+ Kh7 45. Qh5+) 39. h5 $2 {[%emt 0:00:53][%mdl 8192] [#] This move loses the game for White.} (39. Qh5+ $15 Ke7 40. Qg5+ Qxg5 41. hxg5) 39... Kf6 {[%emt 0:01:16]} (39... g5 $142 {( -> ...g4+)} 40. hxg6+ hxg6) 40. Bd1 {[%emt 0:01:24]} Ke7 {[%emt 0:02:54]} 41. Bc2 {[%emt 0:02:08]} h6 $40 {[%emt 0:00:22][%mdl 128] White is in trouble.} 42. Bd1 {[%emt 0:00:59]} Nf7 {[%emt 0:00:38]} 43. Bc2 {[%emt 0:00:16]} Ng5+ {[%emt 0:01:45]} 44. Kh4 {[%emt 0:00:02]} Kf6 {[%emt 0:00:09]} 45. Bd1 {[%emt 0:02:18]} Ke5 {[%emt 0:03:07]} 46. Bc2 {[%emt 0:00:18]} Nh7 {[%emt 0:01:01]} 47. Bd1 {[%emt 0:01:15]} Nf6 {[%emt 0:00:20]} 48. c5 $2 {[%emt 0:00:50]} (48. Kh3 {might work better.}) 48... bxc5 $19 {[%emt 0:01:49] Black is clearly winning.} (48... dxc5 $2 49. Kh3 $19) 49. c4 {[%emt 0:00:36]} (49. Kh3 $142) 49... Nxe4 {[%emt 0:00:53]} 50. Bc2 {[%emt 0:01:34]} Qf2+ {[%emt 0:00:18]} 51. Qxf2 {[%emt 0:00:42]} Nxf2 {[%emt 0:00:02] Weighted Error Value: White=0.40/Black=0.19 (very precise) .  Loses game:     	White=1     	---        Mistake:       	White=4     	Black=3      Inaccurate:     	White=8     	Black=4      OK:         	White=12    	Black=19     Best:        	White=2     	Black=3} 0-1

[Event "2nd Cambridge Open 2024"]
[Site "Cambridge"]
[Date "2024.02.19"]
[Round "1.4"]
[White "Fernandez, Daniel Howard"]
[Black "Abhyuday, Santhosh"]
[Result "1-0"]
[ECO "B90"]
[WhiteElo "2525"]
[BlackElo "2058"]
[Annotator "ChessBase"]
[PlyCount "73"]
[EventDate "2024.02.18"]
[EventType "swiss"]
[EventCountry "ENG"]
[SourceTitle "playchess.com"]
[Source "ChessBase"]
[SourceQuality "1"]
[TimeControl "5400+30"]

1. e4 {[%emt 0:00:00]} c5 {[%emt 0:00:00]} 2. Nf3 {[%emt 0:00:00]} d6 {[%emt 0:00:00]} 3. d4 {[%emt 0:00:00]} cxd4 {[%emt 0:00:00]} 4. Nxd4 {[%emt 0:00:00]} Nf6 {[%emt 0:00:00]} 5. Nc3 {[%emt 0:00:00]} a6 {[%emt 0:00:00]} 6. h3 {[%emt 0:00:00]} e5 {[%emt 0:00:00]} 7. Nf3 {[%emt 0:00:00]} Qc7 {[%emt 0:00:00]} 8. Nh2 {[%emt 0:03:52]} Be6 {[%emt 0:05:42]} 9. Ng4 {[%emt 0:10:18]} Nbd7 {[%emt 0:01:16]} 10. a4 {[%emt 0:01:31]} Rc8 {[%emt 0:02:09]} 11. Qf3 {[%emt 0:14:06]} Be7 {[%emt 0:06:55]} 12. Bd3 {[%emt 0:00:34]} Qc6 {[%emt 0:04:34]} 13. Ne3 {[%emt 0:09:03]} Nc5 {[%emt 0:02:13]} 14. O-O {[%emt 0:03:13]} Nxd3 {[%emt 0:05:33]} 15. cxd3 {[%emt 0:00:03]} O-O {[%emt 0:00:36]} 16. Nf5 {[%emt 0:01:05]} Bxf5 {[%emt 0:05:07]} 17. Qxf5 {[%emt 0:05:34]} h6 {[%emt 0:00:36]} 18. Be3 {[%emt 0:00:31]} Rfd8 {[%emt 0:02:31]} 19. Rac1 {[%emt 0:10:47]} Qd7 {[%emt 0:02:16]} 20. g4 {[%emt 0:01:39]} Rc6 {[%emt 0:04:01]} 21. Qxd7 {[%emt 0:22:39]} Rxd7 {[%emt 0:01:42]} 22. g5 {[%emt 0:00:08]} hxg5 {[%emt 0:08:58]} 23. Bxg5 {[%emt 0:00:03]} Nh5 {[%emt 0:00:47]} 24. Bxe7 {[%emt 0:01:46]} Rxe7 {[%emt 0:00:05]} 25. Nd5 {[%emt 0:00:07]} Re6 {[%emt 0:02:36]} 26. b4 {[%emt 0:01:14]} Rg6+ {[%emt 0:10:30]} 27. Kh2 {[%emt 0:00:44]} Kh7 {[%emt 0:01:39]} 28. a5 {[%emt 0:09:10]} Rh6 {[%emt 0:04:03]} 29. Rc4 {[%emt 0:02:59]} g5 {[%emt 0:12:03]} 30. Rfc1 {[%emt 0:00:28]} Rxc4 {[%emt 0:01:49]} 31. Rxc4 {[%emt 0:00:02]} g4 {[%emt 0:00:20]} 32. Rc7 {[%emt 0:00:48]} Nf4 {[%emt 0:02:11]} 33. Rxf7+ {[%emt 0:01:12]} Kg8 {[%emt 0:00:18]} 34. Rxb7 {[%emt 0:00:03]} Rxh3+ {[%emt 0:01:10]} 35. Kg1 {[%emt 0:00:01]} Rxd3 {[%emt 0:02:42]} 36. b5 {[%emt 0:00:12]} Nh3+ {[%emt 0:04:04]} 37. Kg2 {[%emt 0:00:10]} 1-0

[Event "2nd Cambridge Open 2024"]
[Site "Cambridge"]
[Date "2024.02.19"]
[Round "1.5"]
[White "Denderski, Piotr"]
[Black "Ghasi, Ameet K"]
[Result "1-0"]
[ECO "E95"]
[WhiteElo "2137"]
[BlackElo "2509"]
[Annotator "RC"]
[PlyCount "159"]
[EventDate "2024.02.18"]
[EventType "swiss"]
[EventCountry "ENG"]
[SourceTitle "playchess.com"]
[Source "ChessBase"]
[SourceQuality "1"]
[TimeControl "5400+30"]

1. d4 {[%emt 0:00:01]} Nf6 {[%emt 0:01:23]} 2. c4 {[%emt 0:00:17]} g6 {[%emt 0:00:08]} 3. Nc3 {[%emt 0:00:07]} Bg7 {[%emt 0:00:08]} 4. e4 {[%emt 0:00:06]} d6 {[%emt 0:00:04]} 5. Nf3 {[%emt 0:00:05]} O-O {[%emt 0:00:06]} 6. Be2 {[%emt 0:00:07]} Nbd7 {[%emt 0:00:07]} 7. O-O {[%emt 0:00:08]} e5 {[%emt 0:00:09]} 8. Re1 {[%emt 0:00:12]} Re8 {[%emt 0:06:01]} 9. d5 {[%emt 0:07:46]} Nc5 {[%emt 0:00:58]} 10. Bf1 {[%emt 0:00:59]} a5 {[%emt 0:00:09]} 11. b3 {[%emt 0:10:36]} Rf8 {[%emt 0:10:40]} 12. Rb1 {[%emt 0:03:09]} Bd7 {[%emt 0:09:35]} 13. h3 {[%emt 0:06:30]} Nh5 {[%emt 0:07:04]} 14. Be3 {[%emt 0:11:45]} b6 {[%emt 0:03:59]} 15. Nd2 {[%emt 0:17:43]} Nf4 {[%emt 0:14:03]} 16. Qc2 {[%emt 0:00:08]} f5 {[%emt 0:01:46]} 17. a3 {[%emt 0:04:02]} Nh5 {[%emt 0:06:58]} 18. f3 {[%emt 0:08:37]} Bf6 {[%emt 0:06:57]} 19. b4 {[%emt 0:02:40]} Nb7 {[%emt 0:00:29]} 20. Nb3 {[%emt 0:15:31]} a4 {[%emt 0:04:44]} 21. Nc1 {[%emt 0:00:03]} Bh4 {[%emt 0:03:21]} 22. Rd1 {[%emt 0:01:28]} fxe4 {[%emt 0:02:59]} 23. Nxe4 {[%emt 0:00:14]} Bf5 {[%emt 0:00:20]} 24. Bd3 {[%emt 0:04:13]} Qe7 {[%emt 0:12:17]} 25. Ne2 {[%emt 0:00:27]} Ng7 {[%emt 0:04:52]} 26. c5 {[%emt 0:02:15]} bxc5 {[%emt 0:00:15]} 27. bxc5 {[%emt 0:00:04]} Nd8 {[%emt 0:00:08]} 28. Rb4 {[%emt 0:01:55]} Nf7 {[%emt 0:02:59]} 29. Rxa4 {[%emt 0:01:01]} Bxe4 {[%emt 0:00:45]} 30. Bxe4 {[%emt 0:00:33]} Rxa4 {[%emt 0:00:30]} 31. Qxa4 {[%emt 0:00:04]} Bg5 {[%emt 0:00:24]} 32. Bf2 {[%emt 0:00:21]} dxc5 {[%emt 0:01:09]} 33. Qc2 {[%emt 0:00:04]} Nd6 {[%emt 0:00:12]} 34. Bxc5 {[%emt 0:00:22]} Ra8 {[%emt 0:00:28]} 35. a4 {[%emt 0:01:45]} Qd7 {[%emt 0:00:01]} 36. Ra1 {[%emt 0:00:10]} Ngf5 {[%emt 0:00:12]} 37. Bxf5 {[%emt 0:00:40]} Nxf5 {[%emt 0:00:05]} 38. Qe4 {[%emt 0:00:13]} Ra5 {[%emt 0:00:52]} 39. Bf2 {[%emt 0:00:31]} Kf7 {[%emt 0:02:04]} 40. Nc3 {[%emt 0:00:08]} Be7 {[%emt 0:00:35]} 41. Rb1 {[%emt 0:00:53]} Bd6 {[%emt 0:00:28]} 42. h4 {[%emt 0:01:36]} Ne7 {[%emt 0:00:08]} 43. h5 {[%emt 0:00:12]} Qf5 {[%emt 0:00:47]} 44. hxg6+ {[%emt 0:00:03]} hxg6 {[%emt 0:00:04]} 45. g4 {[%emt 0:00:31]} Qf4 {[%emt 0:00:52]} 46. Qxf4+ {[%emt 0:02:13]} exf4 {[%emt 0:00:01]} 47. Rb5 {[%emt 0:00:14]} Ra8 {[%emt 0:00:30]} 48. a5 {[%emt 0:00:04]} Nc8 {[%emt 0:01:08]} 49. Bd4 {[%emt 0:01:14]} Ke8 {[%emt 0:00:23]} 50. Ne4 {[%emt 0:00:08]} Kd7 {[%emt 0:00:19]} 51. Kf2 {[%emt 0:00:55]} Be7 {[%emt 0:00:40]} 52. Bc3 {[%emt 0:00:48]} Ra6 {[%emt 0:00:41]} 53. Bd2 {[%emt 0:00:19]} g5 {[%emt 0:00:25]} 54. Rb8 {[%emt 0:00:28]} Kd8 {[%emt 0:00:35]} 55. Bc3 {[%emt 0:00:34]} Kd7 {[%emt 0:00:20]} 56. Rb7 {[%emt 0:00:22]} Ra8 {[%emt 0:00:41]} 57. Ke2 {[%emt 0:00:41]} Nd6 {[%emt 0:00:01]} 58. Nxd6 {[%emt 0:00:18]} Bxd6 {[%emt 0:00:03]} 59. Rb1 {[%emt 0:00:25]} Re8+ {[%emt 0:00:18]} 60. Kd3 {[%emt 0:00:17]} c6 {[%emt 0:01:31]} 61. Rb7+ {[%emt 0:00:27]} Bc7 {[%emt 0:00:25]} 62. a6 {[%emt 0:00:05]} Kd6 {[%emt 0:00:42]} 63. Bb4+ {[%emt 0:01:34]} c5 {[%emt 0:00:00]} 64. Bxc5+ {[%emt 0:00:05]} Kxc5 {[%emt 0:00:04]} 65. Rxc7+ {[%emt 0:00:03]} Kxd5 {[%emt 0:00:04]} 66. a7 {[%emt 0:00:16]} Re3+ {[%emt 0:00:05]} 67. Kc2 {[%emt 0:00:17]} Ra3 {[%emt 0:00:03]} 68. Kb2 {[%emt 0:00:09]} Ra5 {[%emt 0:00:28]} 69. Kc3 {[%emt 0:00:47]} Kd6 {[%emt 0:00:17]} 70. Rg7 {[%emt 0:00:04]} Ke6 {[%emt 0:00:40]} 71. Kb4 {[%emt 0:00:09]} Ra1 {[%emt 0:00:04]} 72. Kc5 {[%emt 0:00:25]} Kf6 {[%emt 0:00:05]} 73. Rh7 {[%emt 0:00:17]} Ke5 {[%emt 0:00:03]} 74. Kb6 {[%emt 0:00:10]} Kd4 {[%emt 0:00:05]} 75. Re7 {[%emt 0:00:05]} Kd5 {[%emt 0:02:35]} 76. Rd7+ {[%emt 0:03:02]} Ke6 {[%emt 0:00:10]} 77. Rd4 {[%emt 0:00:31]} Ke5 {[%emt 0:00:12]} 78. Rb4 {[%emt 0:00:13]} Kd5 {[%emt 0:00:16]} 79. Kb7 {[%emt 0:00:04]} Kc5 {[%emt 0:00:03]} 80. Rb2 {[%emt 0:00:05]} 1-0

[Event "2nd Cambridge Open 2024"]
[Site "Cambridge"]
[Date "2024.02.19"]
[Round "1.7"]
[White "Mihalik, Agoston"]
[Black "Royal, Shreyas"]
[Result "0-1"]
[ECO "B51"]
[WhiteElo "2146"]
[BlackElo "2459"]
[Annotator "TA"]
[PlyCount "52"]
[EventDate "2024.02.18"]
[EventType "swiss"]
[EventCountry "ENG"]
[SourceTitle "playchess.com"]
[Source "ChessBase"]
[SourceQuality "1"]
[TimeControl "5400+30"]

{[%evp 9,52,11,13,14,15,12,11,18,27,14,25,9,20,5,7,19,0,0,0,-14,-12,-14,0,-9,52,45,39,0,0,-102,20,-8,-12,-154,-153,-239,-231,-211,-221,-383,-378,-568,-560,-592,-597]} 1. e4 {[%emt 0:00:06]} c5 {[%emt 0:00:12]} 2. Nf3 {[%emt 0:00:07]} d6 {[%emt 0:00:08]} 3. Bb5+ {[%emt 0:00:08]} Nd7 {[%emt 0:00:07]} 4. O-O {[%emt 0:00:09]} a6 {[%emt 0:00:07]} 5. Bd3 {[%emt 0:00:07]} Ngf6 {[%emt 0:00:05]} 6. c3 {[%emt 0:00:12]} b5 {[%emt 0:00:06]} 7. Bc2 {[%emt 0:00:20]} Bb7 {[%emt 0:00:07]} 8. Re1 {[%emt 0:00:13] The position is equal.} e6 {[%emt 0:00:25]} 9. d4 {[%emt 0:01:02]} Be7 {[%emt 0:00:07]} 10. Nbd2 {[%emt 0:03:00]} Qc7 {[%emt 0:00:07]} 11. e5 {[%emt 0:03:38]} dxe5 {[%emt 0:02:29]} 12. dxe5 {[%emt 0:00:13]} Nd5 {[%emt 0:02:18]} 13. Nf1 {[%emt 0:02:23]} O-O-O {[%emt 0:05:34][%cal Og7g5]} 14. a4 {[%emt 0:13:17] [#]} g5 $1 {[%emt 0:04:23]} 15. axb5 {[%emt 0:01:03]} axb5 {[%emt 0:00:09][%cal Ba6b5,Bb5c4][%mdl 32]} 16. Qe2 {[%emt 0:04:45]} Bc6 {[%emt 0:02:41]} (16... Qc6 $1 $11) 17. c4 {[%emt 0:09:58]} (17. Bxg5 Bxg5 18. Be4 (18. Nxg5 $2 Rhg8 $17) 18... Be7 $19) 17... bxc4 {[%emt 0:05:33]} 18. Ba4 {[%emt 0:10:30]} (18. Bxg5 $2 Bxg5 19. Nxg5 Rhg8 $19 (19... Nf4 20. Qxc4 Nxg2 21. Nxf7 $14)) 18... Bb7 {[%emt 0:01:14]} 19. Bb5 {[%emt 0:02:29] [#]} (19. Nxg5 Bxg5 20. Bxg5 Rdg8 21. Bxd7+ Qxd7 $17) (19. Bd2 $1 $11 {keeps the balance.}) 19... Kb8 {[%emt 0:09:25]} ({Black should try} 19... Rhg8 $1 $17 {aiming for ...g4.} 20. Qxc4 (20. Bxc4 g4 $17) 20... g4) 20. Ng3 {[%emt 0:10:24]} ({But not} 20. Nxg5 Bxg5 21. Bxg5 Rhg8 $17) 20... Rhg8 {[%emt 0:06:15]} 21. Bxd7 {[%emt 0:03:23]} (21. Qxc4 $11 g4 22. Nd2 (22. Bxd7 gxf3 23. Bb5 h5 $19)) 21... Rxd7 $17 {[%emt 0:03:17]} 22. Qxc4 {[%emt 0:01:15] [#]} (22. Rd1 $17) 22... g4 $1 $19 {[%emt 0:04:18]} 23. Nd2 {[%emt 0:00:18]} Nb4 {[%emt 0:00:05] Strongly threatening ...Rd4.} 24. Ra3 $2 {[%emt 0:08:34]} (24. Re4 {keeps fighting.} Qc6 25. Qf1) 24... Rd4 {[%emt 0:02:13] Active counter play!} 25. Qc3 {[%emt 0:07:20]} (25. Qb5 $142 Nc2 26. Ree3) 25... Rgd8 {[%emt 0:00:06] ...Qc6 would now be deadly.} 26. Nde4 {[%emt 0:03:52]} Qc6 {[%emt 0:03:27] Weighted Error Value: White=0.57/Black=0.12 (very precise) .  Mistake:       	White=5     	Black=2      Inaccurate:     	White=2     	---        OK:         	White=5     	Black=11     Best:        	---       	Black=2      Brilliant:      	---       	Black=1} 0-1